[Event "Early-Titled-Tuesday-Blitz-March-19-2024"]
[Site "Chess.com"]
[Date "2024.03.19"]
[Round "9"]
[White "kleber2007"]
[Black "Mikasinski"]
[Result "1-0"]
[WhiteElo "2489"]
[BlackElo "2629"]
[TimeControl "180+1"]
[EndTime "9:46:15 PDT"]
[Termination "kleber2007 won by checkmate"]

1. d4 {[%clk 0:03:00.9]} 1... Nf6 {[%clk 0:02:56.1]} 2. c4 {[%clk 0:03:00.4]}
2... e6 {[%clk 0:02:56.8]} 3. Nf3 {[%clk 0:03:00.3]} 3... b6 {[%clk 0:02:57.4]}
4. g3 {[%clk 0:02:59.7]} 4... Bb7 {[%clk 0:02:57.8]} 5. Bg2 {[%clk 0:02:59.5]}
5... Bb4+ {[%clk 0:02:57.2]} 6. Bd2 {[%clk 0:02:59.1]} 6... Be7 {[%clk
0:02:56.9]} 7. O-O {[%clk 0:02:57.1]} 7... O-O {[%clk 0:02:57.1]} 8. Nc3 {[%clk
0:02:56.7]} 8... d5 {[%clk 0:02:57]} 9. cxd5 {[%clk 0:02:55.4]} 9... exd5 {[%clk
0:02:56]} 10. Ne5 {[%clk 0:02:53]} 10... c5 {[%clk 0:02:56]} 11. Bg5 {[%clk
0:02:43.1]} 11... cxd4 {[%clk 0:02:47.8]} 12. Qxd4 {[%clk 0:02:41.4]} 12... Nc6
{[%clk 0:02:45.6]} 13. Nxc6 {[%clk 0:02:38.3]} 13... Bxc6 {[%clk 0:02:44.4]} 14.
Rfd1 {[%clk 0:02:35.5]} 14... Rc8 {[%clk 0:02:42.1]} 15. Qf4 {[%clk 0:02:17]}
15... Qc7 {[%clk 0:02:01.4]} 16. Qxc7 {[%clk 0:02:14.3]} 16... Rxc7 {[%clk
0:02:02.3]} 17. Rd2 {[%clk 0:02:01.5]} 17... h6 {[%clk 0:01:52.8]} 18. Bxf6
{[%clk 0:01:59.3]} 18... Bxf6 {[%clk 0:01:51.3]} 19. Nxd5 {[%clk 0:01:59.6]}
19... Bxd5 {[%clk 0:01:51.3]} 20. Bxd5 {[%clk 0:01:57.6]} 20... Rfc8 {[%clk
0:01:46.4]} 21. Rad1 {[%clk 0:01:55.1]} 21... Rc2 {[%clk 0:01:43.5]} 22. Bb3
{[%clk 0:01:51.8]} 22... Rxd2 {[%clk 0:01:24.8]} 23. Rxd2 {[%clk 0:01:51.3]}
23... Rc7 {[%clk 0:01:25.5]} 24. f4 {[%clk 0:01:47.9]} 24... Kf8 {[%clk
0:01:23.8]} 25. e4 {[%clk 0:01:43.8]} 25... Be7 {[%clk 0:01:21.3]} 26. Kg2
{[%clk 0:01:43.1]} 26... Bb4 {[%clk 0:01:19.9]} 27. Re2 {[%clk 0:01:29.5]} 27...
Rc1 {[%clk 0:01:11]} 28. e5 {[%clk 0:01:27.5]} 28... Bc5 {[%clk 0:01:07.9]} 29.
Kf3 {[%clk 0:01:26.2]} 29... a5 {[%clk 0:01:03.7]} 30. Rd2 {[%clk 0:01:24.7]}
30... Ke7 {[%clk 0:01:03.4]} 31. Ba4 {[%clk 0:01:20.9]} 31... Rf1+ {[%clk
0:01:02.1]} 32. Ke4 {[%clk 0:01:20.1]} 32... g5 {[%clk 0:00:57.6]} 33. Rd7+
{[%clk 0:01:15.8]} 33... Kf8 {[%clk 0:00:56.8]} 34. Bb3 {[%clk 0:01:13.7]} 34...
Be7 {[%clk 0:00:52.5]} 35. f5 {[%clk 0:01:10]} 35... Re1+ {[%clk 0:00:46.9]} 36.
Kd5 {[%clk 0:01:07.3]} 36... Re2 {[%clk 0:00:44.1]} 37. Rb7 {[%clk 0:00:54.3]}
37... f6 {[%clk 0:00:36.4]} 38. exf6 {[%clk 0:00:52.5]} 38... Bxf6 {[%clk
0:00:35.4]} 39. Kc6 {[%clk 0:00:47.8]} 39... Bd4 {[%clk 0:00:19.2]} 40. h4
{[%clk 0:00:37.8]} 40... g4 {[%clk 0:00:15.7]} 41. Rf7+ {[%clk 0:00:35.5]} 41...
Ke8 {[%clk 0:00:15.7]} 42. Be6 {[%clk 0:00:31.3]} 42... Rxb2 {[%clk 0:00:07.2]}
43. Rh7 {[%clk 0:00:30.9]} 43... Rc2+ {[%clk 0:00:03.9]} 44. Kd5 {[%clk
0:00:28.7]} 44... Bf2 {[%clk 0:00:02]} 45. f6 {[%clk 0:00:20.4]} 45... Rd2+
{[%clk 0:00:02.6]} 46. Ke4 {[%clk 0:00:20.3]} 46... Rd4+ {[%clk 0:00:02.8]} 47.
Kf5 {[%clk 0:00:20.2]} 47... Kd8 {[%clk 0:00:01.8]} 48. Rh8+ {[%clk 0:00:15.6]}
48... Kc7 {[%clk 0:00:02.2]} 49. f7 {[%clk 0:00:16.2]} 49... Bxg3 {[%clk
0:00:02.8]} 50. f8=Q {[%clk 0:00:16]} 50... Rf4+ {[%clk 0:00:03.4]} 51. Kg6
{[%clk 0:00:15.3]} 51... Rxf8 {[%clk 0:00:04.1]} 52. Rxf8 {[%clk 0:00:15.8]}
52... Bd6 {[%clk 0:00:04.6]} 53. Rf7+ {[%clk 0:00:15]} 53... Kc6 {[%clk
0:00:05.3]} 54. Bxg4 {[%clk 0:00:15.5]} 54... b5 {[%clk 0:00:05.7]} 55. Kxh6
{[%clk 0:00:14.7]} 55... b4 {[%clk 0:00:06.3]} 56. Bd1 {[%clk 0:00:13]} 56...
Kc5 {[%clk 0:00:06.6]} 57. Kg6 {[%clk 0:00:13.2]} 57... Kc4 {[%clk 0:00:05.9]}
58. h5 {[%clk 0:00:13]} 58... Kc3 {[%clk 0:00:06.1]} 59. h6 {[%clk 0:00:12.7]}
59... Be5 {[%clk 0:00:06.6]} 60. Bb3 {[%clk 0:00:12.6]} 60... Kb2 {[%clk
0:00:06.6]} 61. Rf2+ {[%clk 0:00:11.5]} 61... Ka3 {[%clk 0:00:06.8]} 62. Re2
{[%clk 0:00:11.5]} 62... Bc3 {[%clk 0:00:07.2]} 63. h7 {[%clk 0:00:12.4]} 63...
a4 {[%clk 0:00:07.1]} 64. Bf7 {[%clk 0:00:11.8]} 64... Bb2 {[%clk 0:00:05.6]}
65. Re3+ {[%clk 0:00:10.6]} 65... Bc3 {[%clk 0:00:05.6]} 66. h8=Q {[%clk
0:00:09.6]} 66... Kb2 {[%clk 0:00:03.5]} 67. Rxc3 {[%clk 0:00:08.7]} 67... bxc3
{[%clk 0:00:04.4]} 68. Qd4 {[%clk 0:00:08.5]} 68... Ka3 {[%clk 0:00:05]} 69.
Qxc3# {[%clk 0:00:08.4]} 1-0

[Event "Early-Titled-Tuesday-Blitz-March-19-2024"]
[Site "Chess.com"]
[Date "2024.03.19"]
[Round "9"]
[White "Zq1"]
[Black "Alexchess1984"]
[Result "1-0"]
[WhiteElo "2620"]
[BlackElo "2751"]
[TimeControl "180+1"]
[EndTime "9:46:17 PDT"]
[Termination "Zq1 won on time"]

1. d4 {[%clk 0:03:00.9]} 1... Nf6 {[%clk 0:02:59.2]} 2. c4 {[%clk 0:03:00.9]}
2... c5 {[%clk 0:02:58.6]} 3. Nf3 {[%clk 0:02:59.7]} 3... cxd4 {[%clk
0:02:58.1]} 4. Nxd4 {[%clk 0:02:59.4]} 4... g6 {[%clk 0:02:58.8]} 5. Nc3 {[%clk
0:02:58]} 5... Bg7 {[%clk 0:02:59]} 6. e4 {[%clk 0:02:58.2]} 6... O-O {[%clk
0:02:58.9]} 7. Be2 {[%clk 0:02:58.2]} 7... d6 {[%clk 0:02:59.1]} 8. Be3 {[%clk
0:02:58.3]} 8... Bd7 {[%clk 0:02:59]} 9. O-O {[%clk 0:02:58.1]} 9... Nc6 {[%clk
0:02:58.8]} 10. Qd2 {[%clk 0:02:56.4]} 10... Nxd4 {[%clk 0:02:58.6]} 11. Bxd4
{[%clk 0:02:56]} 11... Bc6 {[%clk 0:02:56.6]} 12. f3 {[%clk 0:02:55.7]} 12... a5
{[%clk 0:02:55.7]} 13. b3 {[%clk 0:02:53.6]} 13... Nd7 {[%clk 0:02:55.5]} 14.
Bf2 {[%clk 0:02:52.8]} 14... Nc5 {[%clk 0:02:51.6]} 15. Rac1 {[%clk 0:02:51.5]}
15... Qb6 {[%clk 0:02:49.6]} 16. Rb1 {[%clk 0:02:43.2]} 16... Qb4 {[%clk
0:02:45]} 17. Rfc1 {[%clk 0:02:39.4]} 17... a4 {[%clk 0:02:35.4]} 18. Qc2 {[%clk
0:02:17.2]} 18... axb3 {[%clk 0:02:34.3]} 19. axb3 {[%clk 0:02:16.6]} 19... Ra3
{[%clk 0:02:09.7]} 20. Na2 {[%clk 0:02:11.8]} 20... Qa5 {[%clk 0:02:09]} 21. b4
{[%clk 0:02:09.6]} 21... Qa8 {[%clk 0:02:08.6]} 22. bxc5 {[%clk 0:01:47.6]}
22... Rxa2 {[%clk 0:02:08.4]} 23. Qd1 {[%clk 0:01:47.6]} 23... dxc5 {[%clk
0:02:06.9]} 24. Bxc5 {[%clk 0:01:44]} 24... Rd8 {[%clk 0:01:44]} 25. Qe1 {[%clk
0:01:42.9]} 25... Rdd2 {[%clk 0:01:39.3]} 26. Bf1 {[%clk 0:01:42.3]} 26... Qd8
{[%clk 0:00:58.4]} 27. Be3 {[%clk 0:01:38.5]} 27... Bd4 {[%clk 0:00:56]} 28. Kh1
{[%clk 0:01:38]} 28... Bxe3 {[%clk 0:00:55.7]} 29. Qxe3 {[%clk 0:01:36.4]} 29...
e5 {[%clk 0:00:54.1]} 30. c5 {[%clk 0:01:34.6]} 30... Qd4 {[%clk 0:00:51.1]} 31.
Qxd4 {[%clk 0:01:34.6]} 31... exd4 {[%clk 0:00:48.7]} 32. Bc4 {[%clk 0:01:17]}
32... Rab2 {[%clk 0:00:36.5]} 33. Rxb2 {[%clk 0:01:13.7]} 33... Rxb2 {[%clk
0:00:37.4]} 34. h4 {[%clk 0:01:08.8]} 34... Rd2 {[%clk 0:00:34]} 35. Kh2 {[%clk
0:01:07.1]} 35... Ba4 {[%clk 0:00:31.4]} 36. Rb1 {[%clk 0:01:02.4]} 36... Rc2
{[%clk 0:00:16.2]} 37. Rb4 {[%clk 0:00:58.6]} 37... Bc6 {[%clk 0:00:14.9]} 38.
Bd3 {[%clk 0:00:37.6]} 38... Rxc5 {[%clk 0:00:13.8]} 39. Rxd4 {[%clk 0:00:37.2]}
39... b5 {[%clk 0:00:12.8]} 40. Rd8+ {[%clk 0:00:36]} 40... Kg7 {[%clk 0:00:13]}
41. Rc8 {[%clk 0:00:35.9]} 41... b4 {[%clk 0:00:12]} 42. Rb8 {[%clk 0:00:32.8]}
42... Rc3 {[%clk 0:00:11.4]} 43. Bb1 {[%clk 0:00:26.3]} 43... b3 {[%clk
0:00:10.2]} 44. Kg3 {[%clk 0:00:24.2]} 44... Ba4 {[%clk 0:00:09.3]} 45. Rb4
{[%clk 0:00:23]} 45... Rc1 {[%clk 0:00:08.7]} 46. Rxa4 {[%clk 0:00:22.1]} 46...
Rxb1 {[%clk 0:00:08.9]} 47. Rb4 {[%clk 0:00:22.2]} 47... b2 {[%clk 0:00:09.2]}
48. Rb6 {[%clk 0:00:20.4]} 48... h5 {[%clk 0:00:08.7]} 49. Kf4 {[%clk
0:00:20.2]} 49... Kf8 {[%clk 0:00:08.8]} 50. Ke5 {[%clk 0:00:18.4]} 50... Ke7
{[%clk 0:00:08.9]} 51. Rb7+ {[%clk 0:00:18.3]} 51... Ke8 {[%clk 0:00:09]} 52.
Kf6 {[%clk 0:00:18.6]} 52... Kd8 {[%clk 0:00:06.2]} 53. Kxf7 {[%clk 0:00:17.8]}
53... Kc8 {[%clk 0:00:06.5]} 54. Rb3 {[%clk 0:00:17.7]} 54... Kc7 {[%clk
0:00:06.7]} 55. Kxg6 {[%clk 0:00:17]} 55... Kc6 {[%clk 0:00:07.1]} 56. Kxh5
{[%clk 0:00:17.1]} 56... Kc5 {[%clk 0:00:07.5]} 57. Rb8 {[%clk 0:00:17]} 57...
Kc4 {[%clk 0:00:06.8]} 58. Kg6 {[%clk 0:00:16.4]} 58... Kc3 {[%clk 0:00:07.1]}
59. g4 {[%clk 0:00:15.4]} 59... Rf1 {[%clk 0:00:06.4]} 60. h5 {[%clk 0:00:13.7]}
60... Rxf3 {[%clk 0:00:05.8]} 61. h6 {[%clk 0:00:13.1]} 61... Rf8 {[%clk
0:00:05.4]} 62. Rxb2 {[%clk 0:00:10.7]} 62... Kxb2 {[%clk 0:00:05]} 63. g5
{[%clk 0:00:10.9]} 63... Re8 {[%clk 0:00:03.7]} 64. h7 {[%clk 0:00:10.9]} 64...
Kc3 {[%clk 0:00:03.9]} 65. Kg7 {[%clk 0:00:10.3]} 65... Re7+ {[%clk 0:00:03.7]}
66. Kh6 {[%clk 0:00:09.9]} 66... Re8 {[%clk 0:00:03.3]} 67. g6 {[%clk 0:00:10]}
67... Rxe4 {[%clk 0:00:03.2]} 68. h8=Q+ {[%clk 0:00:09.2]} 1-0

[Event "Early-Titled-Tuesday-Blitz-March-19-2024"]
[Site "Chess.com"]
[Date "2024.03.19"]
[Round "9"]
[White "MaxLeto"]
[Black "Korchmar_Vasiliy"]
[Result "0-1"]
[WhiteElo "2499"]
[BlackElo "2688"]
[TimeControl "180+1"]
[EndTime "9:46:19 PDT"]
[Termination "Korchmar_Vasiliy won by resignation"]

1. g4 {[%clk 0:03:00.9]} 1... g5 {[%clk 0:02:57.7]} 2. h4 {[%clk 0:02:06.4]}
2... gxh4 {[%clk 0:02:44.9]} 3. d4 {[%clk 0:02:03.4]} 3... Bg7 {[%clk
0:02:43.6]} 4. Bg2 {[%clk 0:01:59.4]} 4... c5 {[%clk 0:02:41.2]} 5. dxc5 {[%clk
0:01:53.3]} 5... Na6 {[%clk 0:02:31.5]} 6. Nf3 {[%clk 0:01:32.5]} 6... Nxc5
{[%clk 0:02:30.4]} 7. Nxh4 {[%clk 0:01:30]} 7... d6 {[%clk 0:02:28.3]} 8. Nf5
{[%clk 0:01:26.3]} 8... Bxf5 {[%clk 0:02:26.1]} 9. gxf5 {[%clk 0:01:27.2]} 9...
Nf6 {[%clk 0:02:19.7]} 10. Nc3 {[%clk 0:01:25.5]} 10... Qd7 {[%clk 0:02:10.4]}
11. e4 {[%clk 0:01:20.6]} 11... h5 {[%clk 0:02:01.6]} 12. Bf4 {[%clk 0:01:07.7]}
12... Ng4 {[%clk 0:01:56.1]} 13. Qe2 {[%clk 0:00:47.9]} 13... Rc8 {[%clk
0:01:41.9]} 14. Rh3 {[%clk 0:00:45.5]} 14... a6 {[%clk 0:01:33.7]} 15. O-O-O
{[%clk 0:00:45.3]} 15... Na4 {[%clk 0:01:13.5]} 16. Nxa4 {[%clk 0:00:37.2]}
16... Qxa4 {[%clk 0:01:14.4]} 17. Kb1 {[%clk 0:00:32.9]} 17... Ne5 {[%clk
0:01:07.8]} 18. Ra3 {[%clk 0:00:23.7]} 18... Qd7 {[%clk 0:00:58.6]} 19. Rb3
{[%clk 0:00:19.7]} 19... b5 {[%clk 0:00:56]} 20. Bc1 {[%clk 0:00:20.2]} 20...
Qc7 {[%clk 0:00:49]} 21. f4 {[%clk 0:00:20]} 21... Nc4 {[%clk 0:00:49]} 22. Rh1
{[%clk 0:00:16.9]} 22... h4 {[%clk 0:00:48.5]} 23. Rg1 {[%clk 0:00:13.6]} 23...
Bf6 {[%clk 0:00:48]} 24. Bh3 {[%clk 0:00:07.3]} 24... Qc5 {[%clk 0:00:40.3]} 25.
Rg4 {[%clk 0:00:06.9]} 25... a5 {[%clk 0:00:40.7]} 26. Qg2 {[%clk 0:00:03.8]}
26... a4 {[%clk 0:00:40.3]} 27. Rd3 {[%clk 0:00:03.8]} 27... Qb4 {[%clk
0:00:40.8]} 28. a3 {[%clk 0:00:02.9]} 28... Qc5 {[%clk 0:00:40.2]} 29. Rg8+
{[%clk 0:00:02.6]} 29... Rxg8 {[%clk 0:00:40.3]} 30. Qxg8+ {[%clk 0:00:03.4]}
30... Kd7 {[%clk 0:00:41.2]} 31. Qxf7 {[%clk 0:00:03.8]} 31... Nxa3+ {[%clk
0:00:36.9]} 32. Rxa3 {[%clk 0:00:03.5]} 32... Qxc2+ {[%clk 0:00:37.4]} 33. Ka2
{[%clk 0:00:04]} 33... Qc4+ {[%clk 0:00:37.5]} 34. Qxc4 {[%clk 0:00:03.9]} 34...
Rxc4 {[%clk 0:00:36.9]} 35. Be3 {[%clk 0:00:04.3]} 35... Rxe4 {[%clk 0:00:37.1]}
36. Bg2 {[%clk 0:00:04.6]} 36... Rc4 {[%clk 0:00:35.9]} 37. Bd5 {[%clk
0:00:05.1]} 37... Rc2 {[%clk 0:00:35.3]} 38. Be6+ {[%clk 0:00:05.6]} 38... Kc7
{[%clk 0:00:33.2]} 39. Kb1 {[%clk 0:00:01.9]} 39... Rxb2+ {[%clk 0:00:33.3]} 40.
Kc1 {[%clk 0:00:02.4]} 40... h3 {[%clk 0:00:32.4]} 41. Bd2 {[%clk 0:00:01.3]}
41... h2 {[%clk 0:00:30.2]} 42. Rh3 {[%clk 0:00:01.9]} 42... a3 {[%clk
0:00:29.4]} 43. Rxh2 {[%clk 0:00:02]} 43... a2 {[%clk 0:00:30]} 44. Bxa2 {[%clk
0:00:02.2]} 44... Rxa2 {[%clk 0:00:30.9]} 45. Rh3 {[%clk 0:00:02.1]} 45... Kc6
{[%clk 0:00:26.4]} 46. Rb3 {[%clk 0:00:02.5]} 46... Ra4 {[%clk 0:00:18.8]} 47.
Kd1 {[%clk 0:00:01.6]} 47... Rc4 {[%clk 0:00:18.8]} 48. Ke2 {[%clk 0:00:01.9]}
48... Rc5 {[%clk 0:00:19.5]} 49. Re3 {[%clk 0:00:02]} 49... Rxf5 {[%clk
0:00:19.5]} 50. Kd3 {[%clk 0:00:02.5]} 50... Rxf4 {[%clk 0:00:15.8]} 51. Rxe7
{[%clk 0:00:01.7]} 51... Rd4+ {[%clk 0:00:16.2]} 52. Ke3 {[%clk 0:00:02.3]}
52... Rxd2 {[%clk 0:00:16.6]} 53. Re6 {[%clk 0:00:02.9]} 53... Bg5+ {[%clk
0:00:16.6]} 54. Ke4 {[%clk 0:00:03.1]} 54... Rd5 {[%clk 0:00:16.4]} 55. Re8
{[%clk 0:00:02.7]} 55... Re5+ {[%clk 0:00:16.9]} 56. Kd4 {[%clk 0:00:02.7]}
56... Rxe8 {[%clk 0:00:15.9]} 57. Kd3 {[%clk 0:00:02.7]} 57... Kd5 {[%clk
0:00:16]} 58. Kc3 {[%clk 0:00:03.6]} 58... Re4 {[%clk 0:00:15.2]} 59. Kb3 {[%clk
0:00:04.5]} 59... Kc5 {[%clk 0:00:14.7]} 60. Kb2 {[%clk 0:00:05.3]} 60... Re3
{[%clk 0:00:14.7]} 61. Kc2 {[%clk 0:00:06.2]} 61... Kc4 {[%clk 0:00:14.8]} 62.
Kb1 {[%clk 0:00:07.1]} 62... Kc3 {[%clk 0:00:10.6]} 63. Ka2 {[%clk 0:00:08]}
63... Re4 {[%clk 0:00:08.6]} 64. Kb1 {[%clk 0:00:07.4]} 64... Bf6 {[%clk
0:00:08.7]} 65. Ka1 {[%clk 0:00:07]} 65... Ra4+ {[%clk 0:00:08.5]} 66. Kb1
{[%clk 0:00:07.1]} 66... Bd8 {[%clk 0:00:08.5]} 0-1

[Event "Early-Titled-Tuesday-Blitz-March-19-2024"]
[Site "Chess.com"]
[Date "2024.03.19"]
[Round "9"]
[White "Fjal"]
[Black "lluiss"]
[Result "0-1"]
[WhiteElo "2307"]
[BlackElo "2236"]
[TimeControl "180+1"]
[EndTime "9:46:24 PDT"]
[Termination "lluiss won by resignation"]

1. Nf3 {[%clk 0:02:34.7]} 1... Nf6 {[%clk 0:02:57.4]} 2. g3 {[%clk 0:02:35.6]}
2... g6 {[%clk 0:02:56.8]} 3. Bg2 {[%clk 0:02:35.7]} 3... Bg7 {[%clk 0:02:57.4]}
4. O-O {[%clk 0:02:35.5]} 4... O-O {[%clk 0:02:57.8]} 5. d3 {[%clk 0:02:36.4]}
5... d5 {[%clk 0:02:57.5]} 6. Nbd2 {[%clk 0:02:33.3]} 6... c5 {[%clk 0:02:57.2]}
7. e4 {[%clk 0:02:33.7]} 7... Nc6 {[%clk 0:02:57]} 8. Qe2 {[%clk 0:02:27.5]}
8... h6 {[%clk 0:02:56.5]} 9. e5 {[%clk 0:02:26.2]} 9... Ng4 {[%clk 0:02:39.4]}
10. Nb3 {[%clk 0:02:20]} 10... Ngxe5 {[%clk 0:02:15.8]} 11. Nxc5 {[%clk
0:02:16.2]} 11... Bg4 {[%clk 0:01:59.3]} 12. Nb3 {[%clk 0:02:13]} 12... Nb4
{[%clk 0:01:40.1]} 13. Bf4 {[%clk 0:02:07.4]} 13... Nxf3+ {[%clk 0:01:36.9]} 14.
Bxf3 {[%clk 0:02:07.3]} 14... Bxf3 {[%clk 0:01:32.6]} 15. Qxf3 {[%clk
0:02:08.2]} 15... Nxc2 {[%clk 0:01:32.8]} 16. Rac1 {[%clk 0:02:06.4]} 16... Nb4
{[%clk 0:01:04.8]} 17. a3 {[%clk 0:02:04.8]} 17... Nc6 {[%clk 0:01:04.3]} 18.
Nc5 {[%clk 0:01:56.1]} 18... Nd4 {[%clk 0:00:57.9]} 19. Qe3 {[%clk 0:01:49.1]}
19... b6 {[%clk 0:00:56.2]} 20. Na6 {[%clk 0:01:43.6]} 20... Rc8 {[%clk
0:00:44.8]} 21. Nb4 {[%clk 0:01:27.2]} 21... Rxc1 {[%clk 0:00:38.8]} 22. Rxc1
{[%clk 0:01:25.3]} 22... e5 {[%clk 0:00:38.6]} 23. Nc6 {[%clk 0:00:30.6]} 23...
Nxc6 {[%clk 0:00:33.7]} 24. Rxc6 {[%clk 0:00:31.5]} 24... exf4 {[%clk
0:00:32.4]} 25. Qxf4 {[%clk 0:00:32.4]} 25... Bxb2 {[%clk 0:00:24.7]} 26. Qxh6
{[%clk 0:00:31.2]} 26... Bg7 {[%clk 0:00:23.9]} 27. Qf4 {[%clk 0:00:30.9]} 27...
Qd7 {[%clk 0:00:18.9]} 28. Rc7 {[%clk 0:00:31]} 28... Qb5 {[%clk 0:00:18]} 29.
Rxa7 {[%clk 0:00:27.5]} 29... Qxd3 {[%clk 0:00:17.4]} 30. h4 {[%clk 0:00:26.9]}
30... Qe4 {[%clk 0:00:14.9]} 31. Qc7 {[%clk 0:00:19.1]} 31... Qe1+ {[%clk
0:00:10.6]} 32. Kg2 {[%clk 0:00:19.4]} 32... Bd4 {[%clk 0:00:08.8]} 33. Qf4
{[%clk 0:00:17.4]} 33... Qe4+ {[%clk 0:00:08.7]} 34. Qxe4 {[%clk 0:00:17.3]}
34... dxe4 {[%clk 0:00:08.6]} 35. Ra4 {[%clk 0:00:17.9]} 35... Rd8 {[%clk
0:00:07]} 36. h5 {[%clk 0:00:17]} 36... gxh5 {[%clk 0:00:06.5]} 37. Kh3 {[%clk
0:00:14.4]} 37... Kg7 {[%clk 0:00:06.6]} 38. Kh4 {[%clk 0:00:13.5]} 38... Kg6
{[%clk 0:00:06.6]} 39. Rc4 {[%clk 0:00:14.4]} 39... Bxf2 {[%clk 0:00:05.8]} 40.
Rxe4 {[%clk 0:00:12.7]} 40... Bc5 {[%clk 0:00:04.7]} 41. a4 {[%clk 0:00:12]}
41... Rd4 {[%clk 0:00:04.4]} 42. Rxd4 {[%clk 0:00:10.4]} 42... Bxd4 {[%clk
0:00:05.3]} 43. g4 {[%clk 0:00:10.8]} 43... hxg4 {[%clk 0:00:04.7]} 44. Kxg4
{[%clk 0:00:11.7]} 44... Bc5 {[%clk 0:00:04.9]} 45. Kf4 {[%clk 0:00:12.1]} 45...
f5 {[%clk 0:00:05.4]} 46. Ke5 {[%clk 0:00:12.1]} 46... Kg5 {[%clk 0:00:06]} 47.
Kd5 {[%clk 0:00:12]} 47... f4 {[%clk 0:00:06.9]} 48. a5 {[%clk 0:00:12.4]} 48...
Kg4 {[%clk 0:00:07.7]} 49. a6 {[%clk 0:00:12.8]} 49... f3 {[%clk 0:00:03.9]} 50.
a7 {[%clk 0:00:12.5]} 50... f2 {[%clk 0:00:04.2]} 51. a8=Q {[%clk 0:00:13.1]}
51... f1=Q {[%clk 0:00:04.4]} 52. Qg8+ {[%clk 0:00:13.7]} 52... Kh3 {[%clk
0:00:04.1]} 53. Qh7+ {[%clk 0:00:14]} 53... Kg2 {[%clk 0:00:04.1]} 54. Qg6+
{[%clk 0:00:14.5]} 54... Kf2 {[%clk 0:00:04.7]} 55. Qf5+ {[%clk 0:00:14.5]}
55... Ke1 {[%clk 0:00:05.6]} 56. Qb1+ {[%clk 0:00:14.3]} 56... Kf2 {[%clk
0:00:05.6]} 57. Qf5+ {[%clk 0:00:14.2]} 57... Kg1 {[%clk 0:00:04.8]} 58. Qh5
{[%clk 0:00:05.6]} 58... Qg2+ {[%clk 0:00:05.7]} 59. Kc4 {[%clk 0:00:05.3]}
59... Qf1+ {[%clk 0:00:05.2]} 60. Kd5 {[%clk 0:00:05]} 60... Qd3+ {[%clk
0:00:05]} 61. Kc6 {[%clk 0:00:05.9]} 61... Qf1 {[%clk 0:00:02.3]} 62. Qg5+
{[%clk 0:00:05.2]} 62... Qg2+ {[%clk 0:00:03.2]} 63. Qxg2+ {[%clk 0:00:04.6]}
63... Kxg2 {[%clk 0:00:04.1]} 64. Kb5 {[%clk 0:00:04.5]} 64... Kf2 {[%clk
0:00:05]} 65. Kc4 {[%clk 0:00:05.3]} 65... Kg3 {[%clk 0:00:05.9]} 66. Kb3 {[%clk
0:00:05.2]} 66... Kh4 {[%clk 0:00:06.8]} 67. Kc4 {[%clk 0:00:05.2]} 67... Kh5
{[%clk 0:00:07.7]} 68. Kb5 {[%clk 0:00:06.1]} 68... Kg6 {[%clk 0:00:08.6]} 69.
Kc4 {[%clk 0:00:06.9]} 69... Kg7 {[%clk 0:00:09.5]} 70. Kb5 {[%clk 0:00:07.8]}
70... Kf8 {[%clk 0:00:09.9]} 71. Kc6 {[%clk 0:00:07.6]} 71... Kf7 {[%clk
0:00:10.1]} 72. Kd5 {[%clk 0:00:08.5]} 72... Kf6 {[%clk 0:00:10.5]} 73. Kc6
{[%clk 0:00:09.4]} 73... Ke7 {[%clk 0:00:10.7]} 74. Kb5 {[%clk 0:00:10.3]} 74...
Kd7 {[%clk 0:00:11]} 75. Kc4 {[%clk 0:00:10.3]} 75... Kc6 {[%clk 0:00:11.6]} 76.
Kb3 {[%clk 0:00:09.6]} 76... b5 {[%clk 0:00:12.2]} 0-1